fUST/lending_fUST_20240111
["ID","MTS","AMOUNT","RATE_DAILY","PERIOD"]
[311216279,1704984651606,-550.13592132,0.0003041,2]
[311216280,1704984651616,-500.0,0.0003041,2]
[311216282,1704984651626,-500.0,0.0003041,2]
[311216284,1704984651636,-500.0,0.0003041,2]
[311216286,1704984651646,-508.98992872,0.0003041,2]
[311216288,1704984651656,-510.97783528,0.0003041,2]
[311216291,1704984651668,-500.0,0.0003041,2]
[311216293,1704984651678,-500.0,0.0003041,2]
[311216295,1704984651689,-500.0,0.0003041,2]
[311216297,1704984651698,-500.0,0.0003041,2]
[311216299,1704984651708,-500.0,0.0003041,2]
[311216301,1704984651717,-500.0,0.0003041,2]
[311216303,1704984651728,-500.0,0.0003041,2]
[311216305,1704984651738,-500.0,0.0003041,2]
[311216306,1704984651747,-505.28809719,0.0003041,2]
[311216308,1704984651757,-500.0,0.0003041,2]
[311216310,1704984651766,-219.89053407,0.0003041,2]
[311216312,1704984651776,-500.0,0.0003041,2]
[311216314,1704984651785,-500.0,0.0003041,2]
[311216316,1704984651794,-500.0,0.0003041,2]
[311216318,1704984651804,-500.0,0.0003041,2]
[311216320,1704984651813,-500.38866514,0.0003041,2]
[311216322,1704984651822,-500.0,0.0003041,2]
[311216324,1704984651832,-500.0,0.0003041,2]
[311216326,1704984651841,-773.24,0.0003041,2]
[311216329,1704984651850,-500.0,0.0003041,2]
[311216331,1704984651860,-404.64629949,0.0003041,2]
[311216333,1704984651870,-500.0,0.0003041,2]
[311216335,1704984651879,-173.39777827,0.0003041,2]
[311216337,1704984651889,-500.0,0.0003041,2]
[311216339,1704984651899,-500.0,0.0003041,2]
[311216341,1704984651909,-505.99846303,0.0003041,2]
[311216343,1704984651918,-500.0,0.0003041,2]
[311216345,1704984651928,-500.0,0.0003041,2]
[311216347,1704984651937,-576.25083322,0.0003041,2]
[311216349,1704984651946,-500.0,0.0003041,2]
[311216351,1704984651955,-500.0,0.0003041,2]
[311216352,1704984651964,-500.0,0.0003041,2]
[311216354,1704984651974,-1896.11,0.0003041,2]
[311216356,1704984651984,-472.92553593,0.0003041,2]
[311216358,1704984651996,-500.0,0.0003041,2]
[311216360,1704984652006,-258.27903606,0.0003041,2]
[311216362,1704984652022,-500.0,0.0003041,2]
[311216364,1704984652032,-311.39649081,0.0003041,2]
[311216366,1704984652043,-500.0,0.0003041,2]
[311216368,1704984652055,-500.0,0.0003041,2]
[311216370,1704984652065,-1166.9,0.0003041,2]
[311216372,1704984652076,-500.0,0.0003041,2]
[311216374,1704984652085,-625.13,0.0003041,2]
[311216376,1704984652095,-500.0,0.0003041,2]
[311216378,1704984652105,-501.19999599,0.0003041,2]
[311216380,1704984652114,-160.73162302,0.0003041,2]
[311216382,1704984652124,-500.0,0.0003041,2]
[311216384,1704984652133,-500.0,0.0003041,2]
[311216386,1704984652142,-544.88,0.0003041,2]
[311216388,1704984652151,-500.0,0.0003041,2]
[311216390,1704984652161,-557.70085945,0.0003041,2]
[311216392,1704984652170,-500.0,0.0003041,2]
[311216394,1704984652180,-257.42195307,0.0003041,2]
[311216396,1704984652189,-500.0,0.0003041,2]
[311216398,1704984652199,-500.0,0.0003041,2]
[311216400,1704984652210,-500.0,0.0003041,2]
[311216402,1704984652219,-500.0,0.0003041,2]
[311216404,1704984652229,-500.0,0.0003041,2]
[311216406,1704984652237,-588.93005954,0.0003041,2]
[311216408,1704984652246,-301.39905633,0.0003041,2]
[311216410,1704984652255,-500.0,0.0003041,2]
[311216412,1704984652264,-500.0,0.0003041,2]
[311216414,1704984652273,-500.0,0.0003041,2]
[311216416,1704984652283,-500.0,0.0003041,2]
[311216418,1704984652292,-500.0,0.0003041,2]
[311216420,1704984652301,-500.0,0.0003041,2]
[311216422,1704984652313,-534.59720715,0.0003041,2]
[311216424,1704984652322,-500.0,0.0003041,2]
[311216426,1704984652332,-177.50791319,0.0003041,2]
[311216428,1704984652341,-204.46283092,0.0003041,2]
[311216430,1704984652350,-528.95650018,0.0003041,2]
[311216432,1704984652359,-503.03106236,0.0003041,2]
[311216434,1704984652368,-500.0,0.0003041,2]
[311216436,1704984652378,-500.0,0.0003041,2]
[311216438,1704984652387,-500.0,0.0003041,2]
[311216440,1704984652396,-500.0,0.0003041,2]
[311216442,1704984652405,-500.0,0.0003041,2]
[311216444,1704984652414,-500.0,0.0003041,2]
[311216446,1704984652425,-509.38199583,0.0003041,2]
[311216448,1704984652434,-500.0,0.0003041,2]
[311216450,1704984652443,-614.64769916,0.0003041,2]
[311216452,1704984652452,-500.0,0.0003041,2]
[311216454,1704984652461,-500.0,0.0003041,2]
[311216456,1704984652471,-500.0,0.0003041,2]
[311216458,1704984652481,-507.3107083,0.0003041,2]
[311216460,1704984652490,-263.79702132,0.0003041,2]
[311216462,1704984652500,-697.58,0.0003041,2]
[311216464,1704984652508,-983.22,0.0003041,2]
[311216466,1704984652518,-503.63059754,0.0003041,2]
[311216468,1704984652527,-500.0,0.0003041,2]
[311216469,1704984652537,-500.0,0.0003041,2]
[311216471,1704984652546,-500.0,0.0003041,2]
[311216473,1704984652556,-502.09711386,0.0003041,2]
[311216475,1704984652567,-471.58118241,0.0003041,2]
[311216477,1704984652578,-500.0,0.0003041,2]
[311216479,1704984652588,-526.31638837,0.0003041,2]
[311216481,1704984652597,-502.26759104,0.0003041,2]
[311216483,1704984652606,-500.0,0.0003041,2]
[311216485,1704984652615,-504.44166871,0.0003041,2]
[311216487,1704984652624,-500.0,0.0003041,2]
[311216489,1704984652633,-501.08575708,0.0003041,2]
[311216491,1704984652641,-500.0,0.0003041,2]
[311216493,1704984652651,-518.15706842,0.0003041,2]
[311216495,1704984652660,-575.77609535,0.0003041,2]
[311216497,1704984652668,-500.0,0.0003041,2]
[311216499,1704984652678,-448.03715962,0.0003041,2]
[311216501,1704984652686,-209.98953882,0.0003041,2]
[311216503,1704984652696,-503.11447732,0.0003041,2]
[311216505,1704984652708,-501.67385778,0.0003041,2]
[311216507,1704984652717,-500.0,0.0003041,2]
[311216509,1704984652726,-500.0,0.0003041,2]
[311216511,1704984652735,-500.0,0.0003041,2]
[311216513,1704984652745,-850.05,0.0003041,2]
[311216515,1704984652754,-500.86129898,0.0003041,2]
[311216517,1704984652763,-500.0,0.0003041,2]
[311216527,1704984652844,-739.58,0.0003041,2]
[311216529,1704984652854,-493.23250154,0.0003041,2]
[311216531,1704984652863,-500.0,0.0003041,2]
[311216533,1704984652872,-500.0,0.0003041,2]
[311216535,1704984652882,-500.0,0.0003041,2]
[311216537,1704984652891,-500.0,0.0003041,2]
[311216539,1704984652901,-500.0,0.0003041,2]
[311216541,1704984652910,-500.0,0.0003041,2]
[311216543,1704984652920,-500.0,0.0003041,2]
[311216545,1704984652929,-500.0,0.0003041,2]
[311216547,1704984652939,-500.0,0.0003041,2]
[311216549,1704984652948,-500.0,0.0003041,2]
[311216551,1704984652959,-256.50796494,0.0003041,2]
[311216553,1704984652969,-500.0,0.0003041,2]
[311216555,1704984652978,-500.0,0.0003041,2]
[311216557,1704984652988,-500.0,0.0003041,2]
[311216559,1704984652997,-507.64157396,0.0003041,2]
[311216561,1704984653007,-500.0,0.0003041,2]
[311216563,1704984653015,-500.0,0.0003041,2]
[311216565,1704984653025,-500.0,0.0003041,2]
[311216567,1704984653034,-234.96184003,0.0003041,2]
[311216569,1704984653044,-500.0,0.0003041,2]
[311216571,1704984653053,-509.95610611,0.0003041,2]
[311216573,1704984653063,-500.0,0.0003041,2]
[311216575,1704984653072,-500.0,0.0003041,2]
[311216577,1704984653081,-500.0,0.0003041,2]
[311216579,1704984653090,-500.0,0.0003041,2]
[311216581,1704984653101,-201.73518869,0.0003041,2]
[311216583,1704984653110,-175.33938275,0.0003041,2]
[311216585,1704984653120,-500.0,0.0003041,2]
[311216587,1704984653129,-500.0,0.0003041,2]
[311216589,1704984653139,-506.55738065,0.0003041,2]
[311216591,1704984653148,-596.07060748,0.0003041,2]
[311216593,1704984653158,-500.0,0.0003041,2]
[311216595,1704984653168,-500.0,0.0003041,2]
[311216597,1704984653177,-748.45,0.0003041,2]
[311216599,1704984653186,-3650.02,0.0003041,2]
[311216601,1704984653195,-500.0,0.0003041,2]
[311216603,1704984653207,-500.0,0.0003041,2]
[311216605,1704984653216,-500.0,0.0003041,2]
[311216607,1704984653225,-1097.4,0.0003041,2]
[311216609,1704984653235,-500.0,0.0003041,2]
[311216611,1704984653245,-500.0,0.0003041,2]
[311216613,1704984653255,-500.0,0.0003041,2]
[311216615,1704984653265,-500.0,0.0003041,2]
[311216617,1704984653274,-500.0,0.0003041,2]
[311216619,1704984653283,-502.07502947,0.0003041,2]
[311216621,1704984653293,-728.75,0.0003041,2]
[311216623,1704984653302,-500.0,0.0003041,2]
[311216625,1704984653313,-500.0,0.0003041,2]
[311216627,1704984653322,-500.0,0.0003041,2]
[311216629,1704984653332,-500.0,0.0003041,2]
[311216631,1704984653341,-500.0,0.0003041,2]
[311216633,1704984653350,-500.0,0.0003041,2]
[311216635,1704984653360,-1401.56,0.0003041,2]
[311216637,1704984653369,-1278.52,0.0003041,2]
[311216639,1704984653378,-500.0,0.0003041,2]
[311216641,1704984653388,-500.0,0.0003041,2]
[311216643,1704984653397,-500.0,0.0003041,2]
[311216645,1704984653407,-345.71155924,0.0003041,2]
[311216647,1704984653416,-923.78,0.0003041,2]
[311216649,1704984653426,-500.0,0.0003041,2]
[311216651,1704984653436,-519.38203127,0.0003041,2]
[311216653,1704984653446,-986.48,0.0003041,2]
[311216655,1704984653455,-545.11433363,0.0003041,2]
[311216657,1704984653464,-500.0,0.0003041,2]
[311216658,1704984653473,-500.0,0.0003041,2]
[311216661,1704984653483,-735.69,0.0003041,2]
[311216662,1704984653492,-500.0,0.0003041,2]
[311216664,1704984653502,-500.0,0.0003041,2]
[311216666,1704984653512,-500.0,0.0003041,5]
[311216668,1704984653521,-500.0,0.0003041,2]
[311216670,1704984653530,-1170.21,0.0003041,2]
[311216672,1704984653539,-500.0,0.0003041,2]
[311216674,1704984653548,-500.0,0.0003041,2]
[311216676,1704984653559,-500.0,0.0003041,2]
[311216678,1704984653569,-500.0,0.0003041,2]
[311216680,1704984653578,-500.0,0.0003041,2]
[311216682,1704984653588,-2294.3,0.0003041,2]
[311216684,1704984653597,-500.0,0.0003041,2]
[311216686,1704984653606,-500.0,0.0003041,2]
[311216689,1704984653617,-500.0,0.0003041,2]
[311216690,1704984653626,-10663.94,0.0003041,2]
[311216692,1704984653635,-500.0,0.0003041,2]
[311216694,1704984653645,-500.0,0.0003041,2]
[311216696,1704984653655,-500.0,0.0003041,2]
[311216698,1704984653664,-1000.0,0.0003041,2]
[311216700,1704984653674,-500.0,0.0003041,2]
[311216702,1704984653683,-500.0,0.0003041,2]
[311216704,1704984653692,-860.89,0.0003041,2]
[311216706,1704984653702,-1132.53,0.0003041,2]
[311216708,1704984653711,-500.0,0.0003041,2]
[311216710,1704984653720,-512.16289169,0.0003041,2]
[311216712,1704984653731,-500.0,0.0003041,2]
[311216714,1704984653740,-500.0,0.0003041,2]
[311216716,1704984653749,-500.0,0.0003041,2]
[311216718,1704984653758,-501.32871188,0.0003041,2]
[311216720,1704984653768,-500.0,0.0003041,2]
[311216722,1704984653777,-500.0,0.0003041,2]
[311216724,1704984653786,-548.17159399,0.0003041,2]
[311216726,1704984653795,-500.0,0.0003041,2]
[311216728,1704984653809,-500.0,0.0003041,2]
[311216730,1704984653818,-500.0,0.0003041,2]
[311216732,1704984653827,-500.0,0.0003041,2]
[311216734,1704984653836,-500.0,0.0003041,2]
[311216736,1704984653845,-518.67904986,0.0003041,2]
[311216738,1704984653855,-809.99,0.0003041,2]
[311216740,1704984653864,-500.0,0.0003041,2]
[311216742,1704984653874,-3666.31,0.0003041,2]
[311216744,1704984653883,-503.17641592,0.0003041,2]
[311216746,1704984653892,-352.34600322,0.0003041,2]
[311216748,1704984653902,-500.0,0.0003041,2]
[311216750,1704984653911,-500.0,0.0003041,2]
[311216752,1704984653920,-6350.93,0.0003041,2]
[311216754,1704984653929,-500.0,0.0003041,2]
[311216756,1704984653938,-1762.88,0.0003041,2]
[311216758,1704984653948,-500.0,0.0003041,2]
[311216761,1704984653959,-500.0,0.0003041,2]
[311216763,1704984653968,-2844.21,0.0003041,2]
[311216765,1704984653977,-6134.31571473,0.0003041,10]
[311216766,1704984653986,-500.0,0.0003041,2]
[311216768,1704984653995,-500.0,0.0003041,2]
[311216770,1704984654005,-2270.02,0.0003041,2]
[311216772,1704984654015,-510.44514775,0.0003041,2]
[311216774,1704984654024,-500.0,0.0003041,2]
[311216776,1704984654033,-500.0,0.0003041,2]
[311216778,1704984654042,-16713.51,0.0003041,2]
[311216780,1704984654051,-500.0,0.0003041,2]
[311216781,1704984654064,-500.0,0.0003041,2]
[311216782,1704984654073,-500.0,0.0003041,2]
[311216783,1704984654082,-464.43999824,0.0003041,2]
[311216784,1704984654211,-463.54000076,0.0003041,2]
[311216793,1704984654295,-927.979999,0.0003041,2]
[311216796,1704984654305,-927.979999,0.0003041,2]
[311216797,1704984654318,-927.979999,0.0003041,2]
[311216799,1704984654327,-151.0,0.0003041,2]
[311216801,1704984654336,-3888.057819,0.0003041,2]
[311216802,1704984654346,-3888.057819,0.0003041,2]
[311216803,1704984654357,-333.168483,0.00030479,2]
[311216804,1704984654367,-229.135011,0.00030479,2]
[311216805,1704984654378,-297.22918671,0.000305,2]
[311216806,1704984654388,-151.10426194,0.00030512,4]
[311216807,1704984654398,-160.17837952,0.00030581,7]
[311216808,1704984654409,-200.0,0.000306,4]
[311216809,1704984654420,-292.0,0.00030658,30]
[311216810,1704984654430,-500.0,0.00030658,7]
[311216811,1704984654439,-706.0,0.00030658,30]
[311216812,1704984654448,-6395.0,0.00030658,30]
[311216813,1704984654458,-4582.0,0.00030658,30]
[311216814,1704984654469,-620.00036753,0.00030663,2]
[311216815,1704984654478,-151.0,0.00030668,2]
[311216816,1704984654487,-3888.057819,0.00030668,2]
[311216817,1704984654498,-3888.057826,0.00030668,2]
[311216818,1704984654507,-500.0,0.00030668,7]
[311216820,1704984654517,-292.0,0.00030668,30]
[311216822,1704984654526,-706.0,0.00030668,30]
[311216824,1704984654535,-6395.0,0.00030668,30]
[311216826,1704984654544,-4582.0,0.00030668,30]
[311216828,1704984654554,-500.0,0.00030678,7]
[311216830,1704984654566,-292.0,0.00030678,30]
[311216833,1704984654575,-706.0,0.00030678,30]
[311216835,1704984654584,-6395.0,0.00030678,30]
[311216837,1704984654594,-4582.0,0.00030678,30]
[311216839,1704984654603,-500.0,0.00030684,2]
[311216840,1704984654613,-500.0,0.00030684,2]
[311216843,1704984654623,-500.0,0.00030684,2]
[311216845,1704984654633,-500.0,0.00030684,2]
[311216847,1704984654642,-500.0,0.00030684,2]
[311216849,1704984654651,-500.0,0.00030684,2]
[311216850,1704984654661,-500.0,0.00030684,2]
[311216853,1704984654670,-510.53781387,0.00030684,2]
[311216854,1704984654680,-500.0,0.00030684,2]
[311216857,1704984654689,-500.0,0.00030684,2]
[311216858,1704984654698,-263.55370066,0.00030684,2]
[311216860,1704984654708,-500.0,0.00030684,2]
[311216862,1704984654717,-500.0,0.00030684,2]
[311216864,1704984654727,-500.0,0.00030684,2]
[311216866,1704984654736,-500.0,0.00030684,2]
[311216868,1704984654745,-500.0,0.00030684,2]
[311216870,1704984654754,-500.0,0.00030684,2]
[311216872,1704984654764,-163.83594978,0.00030684,2]
[311216874,1704984654773,-500.0,0.00030684,2]
[311216876,1704984654783,-500.0,0.00030684,2]
[311216878,1704984654792,-500.0,0.00030684,2]
[311216880,1704984654801,-500.0,0.00030684,2]
[311216882,1704984654813,-388.5668798,0.00030684,2]
[311216884,1704984654821,-500.0,0.00030684,2]
[311216886,1704984654831,-500.0,0.00030684,2]
[311216888,1704984654840,-500.0,0.00030684,2]
[311216889,1704984654850,-502.99875543,0.00030684,2]
[311216890,1704984654860,-500.0,0.00030684,2]
[311216891,1704984654869,-500.0,0.00030684,2]
[311216892,1704984654879,-503.38877477,0.00030684,2]
[311216893,1704984654889,-500.0,0.00030684,2]
[311216894,1704984654899,-500.0,0.00030684,2]
[311216895,1704984654909,-499.82950867,0.00030684,2]
[311216896,1704984654918,-500.0,0.00030684,2]
[311216897,1704984654927,-500.0,0.00030684,2]
[311216898,1704984654937,-490.65448554,0.00030684,2]
[311216899,1704984654946,-500.0,0.00030684,2]
[311216900,1704984654956,-500.0,0.00030684,2]
[311216901,1704984654966,-500.0,0.00030684,2]
[311216903,1704984654975,-383.59167857,0.00030684,2]
[311216905,1704984654984,-500.0,0.00030684,2]
[311216907,1704984654993,-500.0,0.00030684,2]
[311216909,1704984655002,-500.0,0.00030684,2]
[311216911,1704984655011,-500.0,0.00030684,2]
[311216913,1704984655021,-500.0,0.00030684,2]
[311216915,1704984655030,-773.24,0.00030684,2]
[311216917,1704984655039,-500.0,0.00030684,2]
[311216919,1704984655049,-501.95390524,0.00030684,2]
[311216921,1704984655059,-500.0,0.00030684,2]
[311216922,1704984655069,-556.52601552,0.00030684,2]
[311216923,1704984655079,-500.0,0.00030684,2]
[311216925,1704984655088,-500.0,0.00030684,2]
[311216927,1704984655100,-545.28763592,0.00030684,2]
[311216929,1704984655110,-500.0,0.00030684,2]
[311216930,1704984655120,-502.67434409,0.00030684,2]
[311216931,1704984655129,-1896.11,0.00030684,2]
[311216932,1704984655138,-500.0,0.00030684,2]
[311216933,1704984655146,-500.0,0.00030684,2]
[311216934,1704984655156,-500.0,0.00030684,2]
[311216935,1704984655165,-500.0,0.00030684,2]
[311216936,1704984655174,-1166.9,0.00030684,2]
[311216937,1704984655182,-633.21734718,0.00030684,2]
[311216938,1704984655191,-625.13,0.00030684,2]
[311216939,1704984655201,-500.0,0.00030684,2]
[311216940,1704984655214,-500.0,0.00030684,2]
[311216941,1704984655224,-500.0,0.00030684,2]
[311216942,1704984655232,-544.88,0.00030684,2]
[311216943,1704984655242,-500.0,0.00030684,2]
[311216944,1704984655252,-505.37757278,0.00030684,2]
[311216945,1704984655262,-500.0,0.00030684,2]
[311216946,1704984655270,-179.29970668,0.00030684,2]
[311216947,1704984655280,-500.0,0.00030684,2]
[311216948,1704984655291,-500.0,0.00030684,2]
[311216949,1704984655300,-500.0,0.00030684,2]
[311216950,1704984655310,-500.0,0.00030684,2]
[311216951,1704984655318,-500.0,0.00030684,2]
[311216952,1704984655328,-500.0,0.00030684,2]
[311216953,1704984655337,-500.0,0.00030684,2]
[311216954,1704984655347,-500.0,0.00030684,2]
[311216955,1704984655356,-500.0,0.00030684,2]
[311216956,1704984655365,-505.37692655,0.00030684,2]
[311216957,1704984655374,-500.0,0.00030684,2]
[311216958,1704984655383,-500.0,0.00030684,2]
[311216959,1704984655392,-500.0,0.00030684,2]
[311216960,1704984655402,-502.77795987,0.00030684,2]
[311216961,1704984655411,-500.0,0.00030684,2]
[311216962,1704984655421,-500.0,0.00030684,2]
[311216963,1704984655431,-531.01278094,0.00030684,2]
[311216964,1704984655440,-504.7252435,0.00030684,2]
[311216965,1704984655450,-500.0,0.00030684,2]
[311216966,1704984655459,-697.58,0.00030684,2]
[311216967,1704984655469,-983.22,0.00030684,2]
[311216968,1704984655478,-500.0,0.00030684,2]
[311216969,1704984655488,-500.0,0.00030684,2]
[311216970,1704984655496,-500.0,0.00030684,2]
[311216971,1704984655505,-501.73358744,0.00030684,2]
[311216972,1704984655515,-500.0,0.00030684,2]
[311216973,1704984655524,-500.0,0.00030684,2]
[311216974,1704984655533,-500.0,0.00030684,2]
[311216975,1704984655543,-500.0,0.00030684,2]
[311216976,1704984655552,-344.44482029,0.00030684,2]
[311216977,1704984655563,-500.0,0.00030684,2]
[311216978,1704984655573,-500.0,0.00030684,2]
[311216979,1704984655583,-850.05,0.00030684,2]
[311216980,1704984655600,-500.0,0.00030684,2]
[311216981,1704984655609,-739.58,0.00030684,2]
[311216982,1704984655619,-500.0,0.00030684,2]
[311216983,1704984655628,-500.0,0.00030684,2]
[311216984,1704984655638,-500.0,0.00030684,2]
[311216985,1704984655648,-500.0,0.00030684,2]
[311216986,1704984655657,-500.0,0.00030684,2]
[311216987,1704984655666,-500.0,0.00030684,2]
[311216988,1704984655676,-506.28699417,0.00030684,2]
[311216989,1704984655685,-500.0,0.00030684,2]
[311216990,1704984655763,-500.0,0.00030684,2]
[311216991,1704984655773,-500.0,0.00030684,2]
[311216992,1704984655782,-500.0,0.00030684,2]
[311216993,1704984655792,-500.0,0.00030684,2]
[311216994,1704984655802,-500.0,0.00030684,2]
[311216995,1704984655813,-500.0,0.00030684,2]
[311216996,1704984655823,-500.0,0.00030684,2]
[311216997,1704984655833,-500.0,0.00030684,2]
[311216998,1704984655842,-500.0,0.00030684,2]
[311216999,1704984655853,-500.0,0.00030684,2]
[311217000,1704984655862,-500.0,0.00030684,2]
[311217001,1704984655872,-504.47013511,0.00030684,2]
[311217002,1704984655882,-500.0,0.00030684,2]
[311217003,1704984655892,-506.72182713,0.00030684,2]
[311217004,1704984655902,-502.67753851,0.00030684,2]
[311217005,1704984655912,-500.0,0.00030684,2]
[311217006,1704984655922,-500.0,0.00030684,2]
[311217007,1704984655932,-748.45,0.00030684,2]
[311217008,1704984655942,-3650.02,0.00030684,2]
[311217009,1704984655952,-500.0,0.00030684,2]
[311217010,1704984655963,-500.0,0.00030684,2]
[311217011,1704984655974,-500.0,0.00030684,2]
[311217012,1704984655984,-1097.4,0.00030684,2]
[311217013,1704984655994,-411.81553534,0.00030684,2]
[311217014,1704984656004,-500.0,0.00030684,2]
[311217015,1704984656014,-500.0,0.00030684,2]
[311217016,1704984656024,-500.0,0.00030684,2]
[311217017,1704984656033,-500.0,0.00030684,2]
[311217018,1704984656043,-728.75,0.00030684,2]
[311217019,1704984656053,-500.0,0.00030684,2]
[311217020,1704984656065,-500.0,0.00030684,2]
[311217021,1704984656074,-501.53777005,0.00030684,2]
[311217022,1704984656084,-500.0,0.00030684,2]
[311217023,1704984656094,-500.0,0.00030684,2]
[311217024,1704984656103,-180.12976859,0.00030684,2]
[311217025,1704984656113,-1401.56,0.00030684,2]
[311217026,1704984656123,-1278.52,0.00030684,2]
[311217027,1704984656133,-500.0,0.00030684,2]
[311217028,1704984656142,-445.35405182,0.00030684,2]
[311217029,1704984656152,-500.0,0.00030684,2]
[311217030,1704984656162,-923.78,0.00030684,2]
[311217031,1704984656172,-500.0,0.00030684,2]
[311217032,1704984656182,-986.48,0.00030684,2]
[311217033,1704984656191,-500.0,0.00030684,2]
[311217034,1704984656202,-500.0,0.00030684,2]
[311217035,1704984656214,-735.69,0.00030684,2]
[311217036,1704984656223,-500.0,0.00030684,2]
[311217037,1704984656233,-500.0,0.00030684,2]
[311217038,1704984656243,-159.91775899,0.00030684,5]
[311217039,1704984656252,-500.0,0.00030684,2]
[311217040,1704984656261,-1170.21,0.00030684,2]
[311217041,1704984656270,-509.73800057,0.00030684,2]
[311217042,1704984656280,-500.0,0.00030684,2]
[311217043,1704984656290,-500.0,0.00030684,2]
[311217044,1704984656299,-500.0,0.00030684,2]
[311217045,1704984656308,-160.18086769,0.00030684,2]
[311217046,1704984656319,-2294.3,0.00030684,2]
[311217047,1704984656328,-500.0,0.00030684,2]
[311217048,1704984656338,-281.47548314,0.00030684,2]
[311217049,1704984656348,-500.0,0.00030684,2]
[311217050,1704984656358,-10663.94,0.00030684,2]
[311217051,1704984656368,-500.0,0.00030684,2]
[311217052,1704984656378,-500.0,0.00030684,2]
[311217053,1704984656389,-500.0,0.00030684,2]
[311217054,1704984656399,-1003.24708738,0.00030684,2]
[311217055,1704984656409,-500.0,0.00030684,2]
[311217056,1704984656420,-500.0,0.00030684,2]
[311217057,1704984656430,-860.89,0.00030684,2]
[311217058,1704984656441,-1132.53,0.00030684,2]
[311217059,1704984656451,-500.0,0.00030684,2]
[311217060,1704984656460,-218.364234,0.00030684,2]
[311217061,1704984656470,-513.17611346,0.00030684,2]
[311217062,1704984656480,-500.0,0.00030684,2]
[311217063,1704984656490,-500.0,0.00030684,2]
[311217064,1704984656500,-500.0,0.00030684,2]
[311217065,1704984656509,-503.768538,0.00030684,2]
[311217066,1704984656519,-500.0,0.00030684,2]
[311217067,1704984656529,-500.0,0.00030684,2]
[311217068,1704984656539,-500.0,0.00030684,2]
[311217069,1704984656548,-500.0,0.00030684,2]
[311217070,1704984656560,-809.99,0.00030684,2]
[311217071,1704984656570,-500.0,0.00030684,2]
[311217072,1704984656580,-3666.31,0.00030684,2]
[311217073,1704984656589,-508.57206331,0.00030684,2]
[311217074,1704984656598,-500.0,0.00030684,2]
[311217075,1704984656608,-6350.93,0.00030684,2]
[311217076,1704984656618,-500.0,0.00030684,2]
[311217077,1704984656629,-1762.88,0.00030684,2]
[311217078,1704984656640,-500.0,0.00030684,2]
[311217079,1704984656649,-500.0,0.00030684,2]
[311217080,1704984656659,-2844.21,0.00030684,2]
[311217081,1704984656669,-500.0,0.00030684,2]
[311217082,1704984656679,-500.0,0.00030684,2]
[311217083,1704984656688,-2270.02,0.00030684,2]
[311217084,1704984656698,-504.58329312,0.00030684,2]
[311217085,1704984656707,-500.0,0.00030684,2]
[311217086,1704984656716,-16713.51,0.00030684,2]
[311217087,1704984656726,-500.0,0.00030684,2]
[311217088,1704984656736,-372.96767142,0.00030684,2]
[311217089,1704984656746,-500.0,0.00030684,2]
[311217090,1704984656756,-927.979999,0.00030684,2]
[311217091,1704984656765,-927.97999242,0.00030684,2]